fUST/lending_fUST_20240711
["ID","MTS","AMOUNT","RATE_DAILY","PERIOD"]
[331724559,1720699841795,-3000.0,0.0002654,2]
[331724560,1720699841804,-3000.0,0.0002655,2]
[331724561,1720699841815,-3000.0,0.0002656,2]
[331724562,1720699841825,-3000.0,0.0002657,2]
[331724563,1720699841835,-3406.274025,0.0002658,2]
[331724564,1720699841845,-155.45465387,0.00026848,2]
[331724565,1720699841855,-1000.0,0.00027,27]
[331724566,1720699841867,-729.161043,0.00027195,2]
[331724567,1720699841877,-500.0,0.00027397,2]
[331724568,1720699841887,-500.0,0.00027397,7]
[331724569,1720699841896,-500.0,0.00027397,7]
[331724570,1720699841906,-500.0,0.00027397,7]
[331724571,1720699841916,-573.56082225,0.00027397,7]
[331724572,1720699841926,-270.31483457,0.00027397,7]
[331724573,1720699841936,-522.32,0.00027397,7]
[331724574,1720699841946,-529.68,0.00027397,7]
[331724575,1720699841956,-500.0,0.00027397,7]
[331724576,1720699841965,-581.72,0.00027397,7]
[331724577,1720699841975,-500.0,0.00027397,7]
[331724578,1720699841986,-461.09,0.00027397,7]
[331724579,1720699841996,-500.0,0.00027397,7]
[331724580,1720699842006,-596.09,0.00027397,7]
[331724581,1720699842015,-500.0,0.00027397,2]
[331724582,1720699842025,-500.0,0.00027397,2]
[331724583,1720699842034,-500.0,0.00027397,2]
[331724584,1720699842044,-500.0,0.00027397,2]
[331724585,1720699842054,-632.24300418,0.00027397,2]
[331724586,1720699842063,-500.0,0.00027397,2]
[331724587,1720699842073,-500.0,0.00027397,2]
[331724588,1720699842083,-500.0,0.00027397,2]
[331724589,1720699842092,-500.0,0.00027397,2]
[331724590,1720699842102,-500.0,0.00027397,2]
[331724591,1720699842116,-500.0,0.00027397,2]
[331724592,1720699842126,-500.0,0.00027397,2]
[331724593,1720699842135,-500.0,0.00027397,2]
[331724594,1720699842144,-500.0,0.00027397,2]
[331724595,1720699842154,-500.0,0.00027397,2]
[331724596,1720699842165,-500.0,0.00027397,2]
[331724597,1720699842179,-500.0,0.00027397,2]
[331724598,1720699842188,-500.0,0.00027397,2]
[331724599,1720699842198,-500.0,0.00027397,2]
[331724600,1720699842208,-500.0,0.00027397,2]
[331724601,1720699842219,-500.0,0.00027397,2]
[331724602,1720699842229,-500.0,0.00027397,2]
[331724603,1720699842239,-500.0,0.00027397,2]
[331724605,1720699842251,-500.0,0.00027397,2]
[331724607,1720699842261,-500.0,0.00027397,2]
[331724609,1720699842270,-500.0,0.00027397,2]
[331724611,1720699842279,-500.0,0.00027397,2]
[331724613,1720699842289,-524.12,0.00027397,7]
[331724615,1720699842299,-500.0,0.00027397,7]
[331724617,1720699842308,-500.0,0.00027397,2]
[331724619,1720699842318,-500.0,0.00027397,4]
[331724621,1720699842327,-500.0,0.00027397,2]
[331724623,1720699842338,-500.0,0.00027397,7]
[331724625,1720699842348,-500.0,0.00027397,7]
[331724627,1720699842361,-511.19878293,0.00027397,7]
[331724629,1720699842371,-500.0,0.00027397,7]
[331724631,1720699842381,-500.0,0.00027397,7]
[331724634,1720699842391,-500.0,0.00027397,7]
[331724637,1720699842403,-461.59695617,0.00027397,7]
[331724641,1720699842413,-500.0,0.00027397,7]
[331724644,1720699842422,-500.0,0.00027397,7]
[331724647,1720699842431,-500.0,0.00027397,7]
[331724650,1720699842440,-500.0,0.00027397,7]
[331724653,1720699842449,-500.0,0.00027397,7]
[331724656,1720699842458,-500.0,0.00027397,7]
[331724658,1720699842467,-180.47101271,0.00027397,7]
[331724660,1720699842477,-500.0,0.00027397,7]
[331724662,1720699842486,-166.5630506,0.00027397,120]
[331724664,1720699842496,-522.32,0.00027671,7]
[331724666,1720699842505,-500.0,0.00027671,7]
[331724668,1720699842515,-500.0,0.00027671,7]
[331724671,1720699842524,-564.89,0.00027671,4]
[331724674,1720699842534,-500.0,0.00027671,7]
[331724677,1720699842543,-500.0,0.00027671,7]
[331724679,1720699842553,-199.5381141,0.00027671,7]
[331724681,1720699842562,-500.0,0.00027671,7]
[331724683,1720699842571,-522.32,0.00027945,7]
[331724686,1720699842581,-477.97,0.00027945,7]
[331724688,1720699842590,-500.0,0.00027945,7]
[331724689,1720699842600,-500.0,0.00027945,7]
[331724690,1720699842611,-227.73732831,0.00027945,7]
[331724691,1720699842620,-503.0,0.00028124,2]
[331724692,1720699842629,-1406.0,0.00028124,2]
[331724693,1720699842639,-522.32,0.00028219,7]
[331724694,1720699842648,-470.34,0.00028219,7]
[331724695,1720699842658,-500.0,0.00028219,7]
[331724696,1720699842667,-522.32,0.00028493,7]
[331724697,1720699842677,-500.0,0.00028493,7]
[331724699,1720699842686,-211.742,0.00028627,2]
[331724701,1720699842695,-522.32,0.00028767,7]
[331724703,1720699842704,-500.0,0.00028767,7]
[331724704,1720699842714,-984.62412913,0.000289,2]
[331724705,1720699842723,-1000.0,0.00029,29]
[331724706,1720699842733,-2000.0,0.00029,7]
[331724708,1720699842742,-522.32,0.00029041,7]
[331724710,1720699842751,-500.0,0.00029041,7]
[331724711,1720699842761,-235.629,0.00029187,2]
[331724712,1720699842770,-150.379,0.00029187,2]
[331724713,1720699842779,-263.203,0.00029187,2]
[331724714,1720699842789,-522.32,0.00029315,7]
[331724715,1720699842799,-500.0,0.00029315,7]
[331724716,1720699842809,-150.69860279,0.00029415,2]
[331724717,1720699842819,-522.32,0.00029589,7]
[331724718,1720699842829,-500.0,0.00029589,7]
[331724719,1720699842839,-522.32,0.00029863,7]
[331724720,1720699842848,-337.42,0.00029863,7]
[331724721,1720699842859,-170.51355908,0.0003,4]
[331724722,1720699842869,-8550.42241934,0.0003,5]
[331724723,1720699842878,-171.0,0.0003,2]
[331724724,1720699842888,-522.32,0.00030136,7]
[331724725,1720699842897,-522.32,0.0003041,7]
[331724726,1720699842907,-522.32,0.00030684,7]
[331724727,1720699842917,-522.32,0.00030958,7]
[331724728,1720699842926,-164.412679,0.00031084,2]
[331724729,1720699842936,-503.0,0.00031124,2]
[331724730,1720699842945,-1406.0,0.00031124,2]
[331724731,1720699842955,-522.32,0.00031232,7]
[331724732,1720699842965,-522.32,0.00031506,7]
[331724733,1720699842975,-1924.57827969,0.00031578,2]
[331724734,1720699842984,-522.32,0.0003178,7]
[331724735,1720699842994,-1000.0,0.00032,32]
[331724736,1720699843003,-522.32,0.00032054,7]
[331724737,1720699843013,-150.0,0.00032187,2]
[331724738,1720699843023,-522.32,0.00032328,7]
[331724739,1720699843033,-522.32,0.00032602,7]
[331724740,1720699843043,-150.69860279,0.00032683,2]
[331724741,1720699843055,-249.9908982,0.00032683,2]
[331724742,1720699843066,-522.32,0.00032876,7]
[331724743,1720699843076,-229405.9775011,0.00033,30]
[331724753,1720699843330,-293.33531489,0.00033,30]
[331724754,1720699843348,-2914.99640697,0.00033,30]
[331724755,1720699843388,-6213.58324991,0.00033,30]
[331724756,1720699843405,-2193.3172791,0.00033,30]
[331724757,1720699843415,-1804.323423,0.00033,30]
[331724758,1720699843426,-4943.71235841,0.00033,30]
[331724833,1720700917221,2200.60150986,0.000139,2]
[331724905,1720701034572,-328.20804305,0.000189,2]
[331724907,1720701034583,-145.1730071,0.00021096,2]
[331724909,1720701034598,-547.5299839,0.00021096,2]
[331724910,1720701034609,-208.669001,0.00021096,2]
[331724911,1720701034619,-1302.2773104,0.00021612,2]
[331724912,1720701034628,-24900.0,0.00022596,2]
[331724913,1720701034638,-166.666666,0.0002264,2]
[331724914,1720701034647,-3000.0,0.00022923,2]
[331724915,1720701034658,-1980.53584489,0.00023,2]
[331724916,1720701034669,-166.666666,0.00023257,2]
[331724917,1720701034679,-189.72744,0.00023807,2]
[331724918,1720701034690,-166.666666,0.00023874,2]
[331724919,1720701034700,-328.20804305,0.000239,2]
[331724920,1720701034711,-1000.0,0.00024,8]
[331724922,1720701034723,-164.010171,0.0002414,2]
[331724924,1720701034732,-155.45465387,0.00024481,2]
[331724926,1720701034742,-166.666666,0.00024492,2]
[331724928,1720701034752,-166.666666,0.00025109,2]
[331724930,1720701034762,-11018.82,0.00025481,3]
[331724932,1720701034776,-9182.35,0.00025481,3]
[331724933,1720701034786,-7651.96,0.00025481,3]
[331724935,1720701034796,-80747.7929355,0.00025491,3]
[331724937,1720701034806,-500.0,0.00025499,2]
[331724939,1720701034818,-500.0,0.00025499,2]
[331724941,1720701034828,-193.64584073,0.00025499,2]
[331724943,1720701034839,-500.0,0.00025499,2]
[331724945,1720701034849,-336.82771151,0.00025499,2]
[331724947,1720701034858,-208.12577765,0.00025499,2]
[331724949,1720701034868,-500.0,0.00025499,2]
[331724950,1720701034878,-500.0,0.00025499,2]
[331724951,1720701034888,-500.0,0.00025499,2]
[331724952,1720701034898,-500.0,0.00025499,2]
[331724953,1720701034909,-500.0,0.00025499,2]
[331724954,1720701034918,-9233.98153432,0.000255,5]
[331724955,1720701034928,-193704.18916317,0.000255,2]
[331724956,1720701034943,-1476.68717791,0.000255,2]
[331724986,1720701040422,-6376.63,0.00025481,3]
[331724988,1720701040432,-374749.03565771,0.000255,2]
[331725175,1720701043677,-2193.3172791,0.000255,2]
[331725176,1720701043690,-1804.323423,0.000255,2]
[331725177,1720701043702,-4943.71235841,0.000255,2]
[331725181,1720701043754,-1844.16357996,0.000255,2]
[331725183,1720701043767,-487.5,0.000255,2]
[331725320,1720701050192,-5313.86,0.0002549,3]
[331725321,1720701050206,-26091.14000016,0.000255,2]
[331725322,1720701050219,-46874.0,0.000255,2]
[331725323,1720701050255,-32834.93086974,0.000255,2]
[331725324,1720701050266,-52150.85185038,0.00025501,2]
[331725325,1720701050282,-30000.0,0.00025501,2]
[331725326,1720701050292,-19304.01593595,0.00025501,2]
[331725328,1720701050302,-628.95431633,0.00025685,2]
[331725330,1720701050313,-166.666666,0.00025726,2]
[331725331,1720701050322,-7458.94652043,0.0002649,2]
[331725333,1720701050332,-1000.0,0.00027,27]
[331725334,1720701050343,-18962.37896892,0.00027,4]
[331725335,1720701050353,-692.702991,0.00027195,2]
[331725336,1720701050362,-80747.7929355,0.00027207,3]
[331725337,1720701050372,-2000.0,0.00027217,2]
[331725338,1720701050383,-36268.27183974,0.00027387,3]
[331725345,1720701067154,1159.23553938,0.00016848,2]
[331725376,1720701257942,155.45465387,0.00016255,2]
[331725439,1720701842275,217.72515829,0.00016255,2]
[331725449,1720702002820,5909.47978922,0.00016255,2]
[331725451,1720702141873,981.22062177,0.00016255,2]
[331725452,1720702172235,1490.97796954,0.00016255,2]
[331725453,1720702195644,-436.11081455,0.000189,2]
[331725519,1720702234543,-4741.10517712,0.00018899,2]
[331725521,1720702234553,-1500.0,0.00018899,2]
[331725522,1720702234563,-3858.96389588,0.00018899,2]
[331725524,1720702234575,-4523.44188966,0.00018899,2]
[331725525,1720702234585,-89.74671759,0.000189,2]
[331725527,1720702234598,-300.0,0.0001908,2]
[331725528,1720702234608,-11675.04561103,0.00019081,2]
[331725831,1720702238281,-9216.82816213,0.00019081,2]
[331725832,1720702238340,-4008.12622684,0.00019081,2]
[331725833,1720702238350,-696.50812903,0.00019164,2]
[331725834,1720702238360,-398.269941,0.00019214,2]
[331725835,1720702238370,-3000.0,0.0001993,2]
[331725836,1720702238380,-396.53,0.00020525,3]
[331725837,1720702238393,-198.27,0.00020525,3]
[331725838,1720702238403,-165.22,0.00020525,3]
[331725839,1720702238412,-495.7,0.00020525,3]
[331725840,1720702238422,-70859.6000499,0.00020535,2]
[331725841,1720702238432,-1924.57827969,0.00020985,2]
[331725843,1720702238441,-420.0,0.00020988,2]
[331725845,1720702238450,-195.5271576,0.00020996,2]
[331725847,1720702238459,-30000.0,0.00021095,2]
[331725849,1720702238469,-52150.85185038,0.00021095,2]
[331725851,1720702238479,-670.641116,0.00021096,2]
[331725853,1720702238489,-793.06,0.00021895,3]
[331725855,1720702238499,-330.44,0.00021895,3]
[331725858,1720702238508,-166.666666,0.00021918,2]
[331725860,1720702238519,-166.666666,0.00022431,2]
[331725861,1720702238529,-155.45465387,0.00022943,2]
[331725863,1720702238539,-166.666666,0.00022944,2]
[331725865,1720702238548,-274.0,0.00023087,2]
[331725867,1720702238558,-195.52715757,0.00023188,2]
[331725869,1720702238568,-353.90567354,0.0002338,2]
[331725871,1720702238578,-166.666666,0.00023456,2]
[331725873,1720702238587,-353.90567354,0.00023677,2]
[331725875,1720702238597,-1924.57827969,0.0002383,2]
[331725877,1720702238606,-353.90567354,0.00023864,2]
[331725879,1720702238616,-525.85753214,0.000239,2]
[331725881,1720702238626,-166.666666,0.00023969,2]
[331725883,1720702238637,-353.90567354,0.00024134,2]
[331725885,1720702238646,-353.90567354,0.00024442,2]
[331725887,1720702238655,-166.666666,0.00024482,2]
[331725889,1720702238664,-353.90567354,0.00024702,2]
[331725891,1720702238676,-5046.50234242,0.00024961,2]
[331725893,1720702238686,-14347.28784145,0.00025,2]
[331725895,1720702238696,-353.90567354,0.00025104,2]
[331725897,1720702238705,-5046.50234242,0.00025208,2]
[331725899,1720702238714,-353.90567354,0.0002528,2]
[331725901,1720702238723,-195.52715757,0.0002538,2]
[331725903,1720702238733,-5046.50234242,0.00025543,2]
[331725905,1720702238742,-353.90567354,0.00025575,2]
[331725907,1720702238755,-70859.6000499,0.00025637,3]
[331725908,1720702238764,-620.44771598,0.00025716,2]
[331725909,1720702238774,-353.90567354,0.00025789,2]
[331725910,1720702238784,-5046.50234242,0.00025836,2]
[331725911,1720702238793,-164.412679,0.00025978,2]
[331725912,1720702238801,-1000.0,0.00026,8]
[331725914,1720702238810,-5046.50234242,0.00026077,2]
[331725916,1720702238820,-353.90567354,0.00026135,2]
[331725918,1720702238829,-353.90567354,0.00026334,2]
[331725920,1720702238838,-5046.50234242,0.00026436,2]
[331725922,1720702238847,-150.0,0.00026546,2]
[331725923,1720702238856,-353.90567354,0.00026611,2]
[331725925,1720702238865,-5046.50234242,0.00026665,2]
[331725927,1720702238875,-1924.57827969,0.00026675,2]
[331725930,1720702238890,-150.60173835,0.00026812,2]
[331725932,1720702238900,-5046.50234249,0.00026867,2]
[331725934,1720702238909,-14997.85625444,0.0002689,3]
[331725936,1720702238919,-70859.6000499,0.00026955,3]
[331725938,1720702238929,-500.0,0.00026989,2]
[331725940,1720702238939,-345.68804435,0.00026989,2]
[331725942,1720702238948,-500.0,0.00026989,2]
[331725944,1720702238959,-335.77939806,0.00026989,2]
[331725946,1720702238968,-500.0,0.00026989,2]
[331725948,1720702238978,-500.0,0.00026989,2]
[331725950,1720702238987,-500.0,0.00026989,2]
[331725952,1720702238997,-4616.99076716,0.0002699,5]
[331725954,1720702239006,-141719.2001,0.0002699,3]
[331725956,1720702239016,-1000.0,0.00027,27]
[331725958,1720702239026,-103899.33786038,0.00027,2]
[331725960,1720702239037,-353.90567363,0.00027056,2]
[331725962,1720702239047,-2219.16977418,0.00027194,2]
[331725964,1720702239057,-1918.6526209,0.00027194,2]
[331725966,1720702239067,-670.641116,0.00027195,2]
[331725969,1720702239077,-500.0,0.00027397,2]
[331725971,1720702239087,-500.0,0.00027397,7]
[331725973,1720702239097,-500.0,0.00027397,7]
[331725975,1720702239107,-500.0,0.00027397,7]
[331725977,1720702239118,-270.31483457,0.00027397,7]
[331725979,1720702239127,-500.0,0.00027397,2]
[331725981,1720702239143,-500.0,0.00027397,7]
[331725983,1720702239154,-500.0,0.00027397,4]
[331725985,1720702239163,-500.0,0.00027397,2]
[331725987,1720702239172,-511.19878293,0.00027397,7]
[331725989,1720702239181,-500.0,0.00027397,7]
[331725991,1720702239191,-500.0,0.00027397,7]
[331725993,1720702239200,-500.0,0.00027397,7]
[331725995,1720702239210,-500.0,0.00027397,7]
[331725997,1720702239220,-500.0,0.00027397,7]
[331725999,1720702239230,-500.0,0.00027397,7]
[331726001,1720702239239,-529.68,0.00027397,7]
[331726003,1720702239249,-500.0,0.00027397,7]
[331726005,1720702239258,-573.56082225,0.00027397,7]
[331726007,1720702239268,-538.81,0.00027397,7]
[331726009,1720702239277,-500.0,0.00027397,7]
[331726011,1720702239286,-500.0,0.00027397,7]
[331726013,1720702239296,-518.09,0.00027397,7]
[331726015,1720702239305,-500.0,0.00027397,7]
[331726017,1720702239315,-508.78410784,0.00027397,7]
[331726019,1720702239324,-504.21279752,0.00027397,7]
[331726022,1720702239335,-511.084096,0.00027397,7]
[331726024,1720702239344,-500.0,0.00027397,7]
[331726026,1720702239354,-500.0,0.00027397,7]
[331726028,1720702239363,-507.15737686,0.00027397,7]
[331726030,1720702239372,-629.41427439,0.00027397,7]
[331726032,1720702239381,-509.25492053,0.00027397,7]
[331726034,1720702239393,-500.0,0.00027397,7]
[331726035,1720702239402,-500.0,0.00027397,7]
[331726037,1720702239412,-500.0,0.00027397,7]
[331726039,1720702239421,-500.0,0.00027397,7]
[331726042,1720702239431,-506.21113113,0.00027397,7]
[331726044,1720702239440,-500.0,0.00027397,7]
[331726046,1720702239450,-500.0,0.00027397,7]
[331726048,1720702239459,-500.0,0.00027397,7]
[331726049,1720702239468,-500.0,0.00027397,7]
[331726051,1720702239477,-500.0,0.00027397,7]
[331726054,1720702239487,-175.5408137,0.00027397,7]
[331726055,1720702239496,-504.89500772,0.00027397,7]
[331726057,1720702239505,-154.66746495,0.00027397,7]
[331726059,1720702239514,-500.0,0.00027397,7]
[331726061,1720702239523,-500.0,0.00027397,7]
[331726064,1720702239533,-500.0,0.00027397,7]
[331726066,1720702239543,-517.15648468,0.00027397,7]
[331726068,1720702239553,-500.0,0.00027397,7]
[331726069,1720702239561,-502.13604143,0.00027397,7]
[331726071,1720702239571,-511.27534355,0.00027397,7]
[331726073,1720702239580,-474.82168607,0.00027397,7]
[331726075,1720702239589,-500.0,0.00027397,7]
[331726076,1720702239598,-1500.0,0.00027397,7]
[331726077,1720702239607,-509.32352373,0.00027397,7]
[331726078,1720702239617,-511.39439832,0.00027397,7]
[331726079,1720702239626,-835.71,0.00027397,7]
[331726081,1720702239637,-519.68300131,0.00027397,7]
[331726083,1720702239645,-508.87232539,0.00027397,7]
[331726085,1720702239655,-500.0,0.00027397,7]
[331726087,1720702239664,-500.0,0.00027397,7]
[331726089,1720702239675,-180.47101271,0.00027397,7]
[331726091,1720702239684,-530.72,0.00027397,7]
[331726093,1720702239698,-500.0,0.00027397,7]
[331726095,1720702239707,-500.0,0.00027397,7]
[331726097,1720702239715,-500.0,0.00027397,7]
[331726099,1720702239725,-500.0,0.00027397,7]
[331726102,1720702239736,-500.0,0.00027397,7]
[331726105,1720702239746,-629.37046633,0.00027397,7]
[331726107,1720702239755,-500.0,0.00027397,7]
[331726109,1720702239765,-500.0,0.00027397,2]
[331726111,1720702239774,-500.0,0.00027397,2]
[331726113,1720702239783,-409.62592271,0.00027397,2]
[331726115,1720702239792,-500.0,0.00027397,7]
[331726117,1720702239802,-500.0,0.00027397,7]
[331726120,1720702239811,-200.0,0.00027397,7]
[331726122,1720702239820,-500.0,0.00027397,7]
[331726123,1720702239830,-500.0,0.00027397,7]
[331726126,1720702239839,-500.0,0.00027397,7]
[331726127,1720702239849,-409.5150406,0.00027397,7]
[331726129,1720702239858,-500.0,0.00027397,7]
[331726132,1720702239868,-458.05781907,0.00027397,7]
[331726133,1720702239877,-500.0,0.00027397,7]
[331726136,1720702239887,-624.86561761,0.00027397,7]
[331726138,1720702239896,-500.0,0.00027397,7]
[331726139,1720702239905,-500.0,0.00027397,7]
[331726141,1720702239914,-500.0,0.00027397,7]
[331726146,1720702239924,-500.0,0.00027397,7]
[331726147,1720702239933,-596.09,0.00027397,7]
[331726149,1720702239943,-500.0,0.00027397,7]
[331726151,1720702239951,-509.5241073,0.00027397,7]
[331726153,1720702239961,-500.0,0.00027397,7]
[331726155,1720702239970,-500.0,0.00027397,7]
[331726157,1720702239979,-524.12,0.00027397,7]
[331726160,1720702239988,-500.0,0.00027397,7]
[331726162,1720702239998,-500.0,0.00027397,7]
[331726165,1720702240007,-500.0,0.00027397,7]
[331726167,1720702240017,-500.0,0.00027397,7]
[331726169,1720702240026,-500.0,0.00027397,7]
[331726171,1720702240036,-276.86165408,0.00027397,7]
[331726173,1720702240046,-500.0,0.00027397,7]
[331726175,1720702240055,-154.78676851,0.00027397,7]
[331726177,1720702240064,-500.0,0.00027397,7]
[331726179,1720702240074,-500.0,0.00027397,7]
[331726181,1720702240083,-500.0,0.00027397,2]
[331726183,1720702240092,-500.0,0.00027397,2]
[331726185,1720702240101,-500.0,0.00027397,2]
[331726187,1720702240111,-500.0,0.00027397,2]
[331726189,1720702240120,-500.0,0.00027397,2]
[331726191,1720702240129,-500.0,0.00027397,2]
[331726193,1720702240142,-500.0,0.00027397,2]
[331726195,1720702240151,-500.0,0.00027397,2]
[331726197,1720702240160,-500.0,0.00027397,2]
[331726199,1720702240170,-500.0,0.00027397,2]
[331726201,1720702240179,-500.0,0.00027397,2]
[331726203,1720702240188,-500.0,0.00027397,2]
[331726205,1720702240198,-500.0,0.00027397,2]
[331726207,1720702240207,-500.0,0.00027397,2]
[331726209,1720702240216,-500.0,0.00027397,2]
[331726211,1720702240225,-500.0,0.00027397,2]
[331726213,1720702240235,-500.0,0.00027397,2]
[331726215,1720702240244,-500.0,0.00027397,2]
[331726217,1720702240254,-500.0,0.00027397,2]
[331726219,1720702240263,-500.0,0.00027397,2]
[331726221,1720702240274,-500.0,0.00027397,2]
[331726223,1720702240284,-500.0,0.00027397,2]
[331726225,1720702240292,-500.0,0.00027397,2]
[331726227,1720702240301,-500.0,0.00027397,2]
[331726229,1720702240311,-532.24300418,0.00027397,2]
[331726231,1720702240320,-500.0,0.00027397,2]
[331726233,1720702240329,-500.0,0.00027397,2]
[331726235,1720702240338,-166.5630506,0.00027397,120]
[331726237,1720702240348,-3000.0,0.000275,2]
[331726238,1720702240357,-3000.0,0.0002751,2]
[331726239,1720702240366,-3000.0,0.0002752,2]
[331726240,1720702240375,-2046.93057686,0.0002753,2]
[331726254,1720702240511,-953.06942314,0.0002753,2]
[331726256,1720702240521,-3000.0,0.0002754,2]
[331726258,1720702240530,-3000.0,0.0002755,2]
[331726260,1720702240541,-3000.0,0.0002756,2]
[331726262,1720702240550,-3000.0,0.0002757,2]
[331726264,1720702240559,-195.52715757,0.00027571,2]
[331726266,1720702240567,-3406.274025,0.0002758,2]
[331726268,1720702240576,-505.84743693,0.00027671,7]
[331726270,1720702240585,-564.89,0.00027671,4]
[331726272,1720702240594,-199.5381141,0.00027671,7]
[331726274,1720702240604,-500.65,0.00027671,7]
[331726276,1720702240613,-500.0,0.00027671,7]
[331726278,1720702240623,-586.0204411,0.00027671,7]
[331726280,1720702240632,-1500.0,0.00027671,7]
[331726282,1720702240643,-835.71,0.00027671,7]
[331726284,1720702240652,-500.0,0.00027671,7]
[331726286,1720702240661,-160.81,0.00027671,7]
[331726288,1720702240671,-500.0,0.00027671,7]
[331726290,1720702240682,-500.0,0.00027671,7]
[331726292,1720702240695,-461.09,0.00027671,7]
[331726294,1720702240705,-500.0,0.00027671,7]
[331726296,1720702240715,-500.0,0.00027671,7]
[331726298,1720702240724,-500.0,0.00027671,7]
[331726299,1720702240733,-500.0,0.00027671,7]
[331726301,1720702240743,-160.77,0.00027671,7]
[331726302,1720702240752,-1500.0,0.00027945,7]
[331726304,1720702240762,-835.71,0.00027945,7]
[331726305,1720702240771,-227.73732831,0.00027945,7]
[331726306,1720702240780,-500.0,0.00027945,7]
[331726308,1720702240789,-251.72,0.00027945,7]
[331726309,1720702240798,-500.0,0.00027945,7]
[331726311,1720702240807,-500.0,0.00027945,7]
[331726312,1720702240816,-500.0,0.00027945,7]
[331726313,1720702240825,-1500.0,0.00028219,7]
[331726314,1720702240834,-835.71,0.00028219,7]
[331726315,1720702240843,-477.97,0.00028219,7]
[331726316,1720702240852,-470.34,0.00028219,7]
[331726317,1720702240862,-500.0,0.00028219,7]
[331726318,1720702240871,-583.81650452,0.00028219,7]
[331726319,1720702240880,-1500.0,0.00028493,7]
[331726320,1720702240890,-835.71,0.00028493,7]
[331726321,1720702240899,-500.0,0.00028493,7]
[331726322,1720702240908,-1500.0,0.00028767,7]
[331726323,1720702240917,-835.71,0.00028767,7]
[331726324,1720702240926,-500.0,0.00028767,7]
[331726325,1720702240935,-65312.40486388,0.0002877,2]
[331726326,1720702240944,-398.269941,0.00028821,2]
[331726328,1720702240954,-525.85753214,0.000289,2]
[331726329,1720702240963,-1500.0,0.00029041,7]
[331726330,1720702240973,-835.71,0.00029041,7]
[331726331,1720702240982,-500.0,0.00029041,7]
[331726333,1720702240990,-1000.0,0.00029315,7]
[331726335,1720702240999,-835.71,0.00029315,7]
[331726336,1720702241009,-500.0,0.00029315,7]
[331726338,1720702241019,-150.71364408,0.00029433,2]
[331726339,1720702241030,-263.203,0.00029448,2]
[331726341,1720702241041,-503.0,0.00029448,2]
[331726342,1720702241050,-1406.0,0.00029448,2]
[331726343,1720702241059,-248.851,0.00029448,2]
[331726344,1720702241070,-1924.57827969,0.0002952,2]
[331726345,1720702241080,-835.71,0.00029589,7]
[331726346,1720702241090,-500.0,0.00029589,7]
[331726347,1720702241099,-195.52715757,0.00029763,2]
[331726348,1720702241110,-63652.78497482,0.00029765,2]
[331726349,1720702241121,-1230.27459568,0.00029861,2]
[331726350,1720702241132,-835.71,0.00029863,7]
[331726351,1720702241144,-337.42,0.00029863,7]
[331726352,1720702241155,-643.7802781,0.0003,4]
[331726353,1720702241166,-150.37973177,0.0003,7]
[331726354,1720702241176,-350.00820505,0.0003,30]
[331726355,1720702241186,-8550.42241934,0.0003,5]
[331726356,1720702241197,-171.0,0.0003,2]
[331726357,1720702241207,-835.71,0.00030136,7]
[331726358,1720702241219,-835.71,0.0003041,7]
[331726359,1720702241230,-835.71,0.00030684,7]
[331726360,1720702241241,-835.71,0.00030958,7]